[Event "*** SCC Grand Prix: Titled Tuesday Blitz"]
[Site "Chess.com"]
[Date "2020.07.07"]
[Round "6"]
[White "AndrewDGreen"]
[Black "SilviusTiberius"]
[Result "1-0"]
[WhiteElo "2351"]
[BlackElo "2479"]
[TimeControl "180+1"]
[EndTime "11:06:52 PDT"]
[Termination "AndrewDGreen won by resignation"]

1. d4 {[%clk 0:03:00.9]} 1... Nf6 {[%clk 0:02:59.4]} 2. Nf3 {[%clk 0:03:00.5]}
2... g6 {[%clk 0:02:59.8]} 3. Nc3 {[%clk 0:02:59.8]} 3... d5 {[%clk 0:02:59.1]}
4. Bf4 {[%clk 0:02:59.6]} 4... Bg7 {[%clk 0:02:58.3]} 5. e3 {[%clk 0:03:00.2]}
5... O-O {[%clk 0:02:58]} 6. Be2 {[%clk 0:03:00.7]} 6... c5 {[%clk 0:02:58.4]}
7. O-O {[%clk 0:03:00.5]} 7... Nc6 {[%clk 0:02:58.4]} 8. dxc5 {[%clk 0:03:00.9]}
8... Bg4 {[%clk 0:02:23.4]} 9. Nb5 {[%clk 0:02:54.7]} 9... Bxf3 {[%clk
0:02:19.2]} 10. Bxf3 {[%clk 0:02:54.5]} 10... e5 {[%clk 0:02:18.3]} 11. Bg5
{[%clk 0:02:50.4]} 11... Qa5 {[%clk 0:02:18.5]} 12. Nc3 {[%clk 0:02:20.8]} 12...
e4 {[%clk 0:02:16.7]} 13. Bxf6 {[%clk 0:01:58.5]} 13... Bxf6 {[%clk 0:02:05.1]}
14. Nxd5 {[%clk 0:01:57.9]} 14... Bxb2 {[%clk 0:02:04.8]} 15. Rb1 {[%clk
0:01:42]} 15... exf3 {[%clk 0:02:03]} 16. Rxb2 {[%clk 0:01:33.6]} 16... fxg2
{[%clk 0:02:03]} 17. Re1 {[%clk 0:01:14.1]} 17... Qxc5 {[%clk 0:02:03]} 18. Rxb7
{[%clk 0:01:06.3]} 18... Rad8 {[%clk 0:02:01.8]} 19. Nf6+ {[%clk 0:01:02.7]}
19... Kg7 {[%clk 0:02:01.9]} 20. Qa1 {[%clk 0:01:02.5]} 20... Qe5 {[%clk
0:01:58.9]} 21. Nd7 {[%clk 0:00:51.9]} 21... Qxa1 {[%clk 0:01:46.2]} 22. Rxa1
{[%clk 0:00:52.8]} 22... Rfe8 {[%clk 0:01:40.6]} 23. Kxg2 {[%clk 0:00:50.7]}
23... Re7 {[%clk 0:01:35.6]} 24. Nc5 {[%clk 0:00:50.9]} 24... Rxb7 {[%clk
0:01:33.4]} 25. Nxb7 {[%clk 0:00:51.8]} 25... Rd2 {[%clk 0:01:33.6]} 26. c4
{[%clk 0:00:50.5]} 26... Nb4 {[%clk 0:01:31.9]} 27. a3 {[%clk 0:00:44.7]} 27...
Nd3 {[%clk 0:01:31.7]} 28. Rf1 {[%clk 0:00:45.1]} 28... Rc2 {[%clk 0:01:31.2]}
29. c5 {[%clk 0:00:41.7]} 29... Nxc5 {[%clk 0:01:28.3]} 30. Nxc5 {[%clk
0:00:42.6]} 30... Rxc5 {[%clk 0:01:28.8]} 31. Rb1 {[%clk 0:00:37.3]} 31... Rc3
{[%clk 0:01:27]} 32. a4 {[%clk 0:00:37]} 32... Ra3 {[%clk 0:01:22.4]} 33. Rb4
{[%clk 0:00:36.6]} 33... a5 {[%clk 0:01:21.9]} 34. Rc4 {[%clk 0:00:36.1]} 34...
h5 {[%clk 0:01:15.6]} 35. h4 {[%clk 0:00:35.9]} 35... Kf6 {[%clk 0:01:14.2]} 36.
Kf3 {[%clk 0:00:36]} 36... Ra2 {[%clk 0:01:12]} 37. Rd4 {[%clk 0:00:34]} 37...
Ke5 {[%clk 0:01:06]} 38. Kg3 {[%clk 0:00:30.2]} 38... f6 {[%clk 0:01:00]} 39.
Kf3 {[%clk 0:00:29.7]} 39... g5 {[%clk 0:00:58.2]} 40. Kg3 {[%clk 0:00:20.8]}
40... g4 {[%clk 0:00:49.7]} 41. Rf4 {[%clk 0:00:19.1]} 41... f5 {[%clk
0:00:49.5]} 42. Rd4 {[%clk 0:00:18.9]} 42... Ra1 {[%clk 0:00:49.6]} 43. Rc4
{[%clk 0:00:17]} 43... Kd5 {[%clk 0:00:44.7]} 44. Rf4 {[%clk 0:00:16.8]} 44...
Ke6 {[%clk 0:00:38.2]} 45. Rc4 {[%clk 0:00:16.6]} 45... Ra2 {[%clk 0:00:38.2]}
46. Rd4 {[%clk 0:00:14.3]} 46... Ke5 {[%clk 0:00:37.6]} 47. Rc4 {[%clk
0:00:14.2]} 47... Kd6 {[%clk 0:00:34.2]} 48. Rf4 {[%clk 0:00:13.3]} 48... Ke6
{[%clk 0:00:30.8]} 49. Rc4 {[%clk 0:00:12.6]} 49... Ra1 {[%clk 0:00:28.6]} 50.
Rd4 {[%clk 0:00:12]} 50... Rg1+ {[%clk 0:00:26.2]} 51. Kh2 {[%clk 0:00:12]}
51... Rf1 {[%clk 0:00:26]} 52. Kg2 {[%clk 0:00:11.6]} 52... Rh1 {[%clk
0:00:26.3]} 53. Kxh1 {[%clk 0:00:11.3]} 53... f4 {[%clk 0:00:25.6]} 54. Rxf4
{[%clk 0:00:10.7]} 1-0

[Event "*** SCC Grand Prix: Titled Tuesday Blitz"]
[Site "Chess.com"]
[Date "2020.07.07"]
[Round "6"]
[White "alfiefischer77"]
[Black "MestreSoares"]
[Result "1/2-1/2"]
[WhiteElo "2300"]
[BlackElo "2125"]
[TimeControl "180+1"]
[EndTime "11:06:52 PDT"]
[Termination "Game drawn by repetition"]

1. e4 {[%clk 0:03:00.9]} 1... Nf6 {[%clk 0:02:41.7]} 2. e5 {[%clk 0:03:00.7]}
2... Nd5 {[%clk 0:02:40.8]} 3. c4 {[%clk 0:03:01.2]} 3... Nb6 {[%clk 0:02:41.2]}
4. d4 {[%clk 0:03:01.4]} 4... d6 {[%clk 0:02:40.8]} 5. exd6 {[%clk 0:03:02.3]}
5... exd6 {[%clk 0:02:40.6]} 6. h3 {[%clk 0:03:00.8]} 6... Bf5 {[%clk
0:02:38.9]} 7. Nf3 {[%clk 0:03:00.2]} 7... Be7 {[%clk 0:02:38.7]} 8. Bd3 {[%clk
0:02:59.5]} 8... Bxd3 {[%clk 0:02:37.8]} 9. Qxd3 {[%clk 0:03:00.4]} 9... Nc6
{[%clk 0:02:38.2]} 10. O-O {[%clk 0:02:59.3]} 10... O-O {[%clk 0:02:38.2]} 11.
Nc3 {[%clk 0:02:59.1]} 11... Bf6 {[%clk 0:02:37.7]} 12. b3 {[%clk 0:02:41.6]}
12... Re8 {[%clk 0:02:35.2]} 13. Bf4 {[%clk 0:02:39.9]} 13... g6 {[%clk
0:02:34.8]} 14. Rfe1 {[%clk 0:02:28.1]} 14... Qd7 {[%clk 0:02:33.3]} 15. Ne4
{[%clk 0:02:15.1]} 15... Bg7 {[%clk 0:02:31.5]} 16. d5 {[%clk 0:02:12.2]} 16...
Ne5 {[%clk 0:02:28.1]} 17. Nxe5 {[%clk 0:02:04.8]} 17... dxe5 {[%clk 0:02:26.4]}
18. Bg5 {[%clk 0:01:58.9]} 18... f5 {[%clk 0:02:24.9]} 19. Nf6+ {[%clk
0:01:54.9]} 19... Bxf6 {[%clk 0:02:23.2]} 20. Bxf6 {[%clk 0:01:55.8]} 20... e4
{[%clk 0:02:22.5]} 21. Qc3 {[%clk 0:01:51.9]} 21... Qf7 {[%clk 0:02:13]} 22. Bd4
{[%clk 0:01:16.1]} 22... Nd7 {[%clk 0:02:10.4]} 23. Rad1 {[%clk 0:01:12.7]}
23... a6 {[%clk 0:02:06.1]} 24. Re2 {[%clk 0:00:54.7]} 24... Rac8 {[%clk
0:01:55.8]} 25. Red2 {[%clk 0:00:50.5]} 25... h5 {[%clk 0:01:49.4]} 26. b4
{[%clk 0:00:45.2]} 26... Kh7 {[%clk 0:01:46.7]} 27. c5 {[%clk 0:00:38.7]} 27...
Nb8 {[%clk 0:01:24.7]} 28. Be5 {[%clk 0:00:30]} 28... Nd7 {[%clk 0:01:23.7]} 29.
Bd4 {[%clk 0:00:25.4]} 29... Nb8 {[%clk 0:01:22.2]} 30. a3 {[%clk 0:00:23.9]}
30... c6 {[%clk 0:01:19.6]} 31. d6 {[%clk 0:00:23.6]} 31... Nd7 {[%clk
0:01:17.5]} 32. a4 {[%clk 0:00:21.1]} 32... Ra8 {[%clk 0:01:14.4]} 33. Rb2
{[%clk 0:00:21]} 33... Reb8 {[%clk 0:01:07.3]} 34. Rdb1 {[%clk 0:00:21.1]} 34...
f4 {[%clk 0:00:42.7]} 35. b5 {[%clk 0:00:20.5]} 35... f3 {[%clk 0:00:41.6]} 36.
bxc6 {[%clk 0:00:17.8]} 36... bxc6 {[%clk 0:00:40.1]} 37. Rb7 {[%clk 0:00:14.3]}
37... fxg2 {[%clk 0:00:32.2]} 38. Kxg2 {[%clk 0:00:15.2]} 38... Rxb7 {[%clk
0:00:31.8]} 39. Rxb7 {[%clk 0:00:14.7]} 39... Rb8 {[%clk 0:00:32.1]} 40. Rxb8
{[%clk 0:00:05.7]} 40... Nxb8 {[%clk 0:00:30.9]} 41. Qe3 {[%clk 0:00:04]} 41...
Qf5 {[%clk 0:00:21.7]} 42. f3 {[%clk 0:00:03.3]} 42... exf3+ {[%clk 0:00:20]}
43. Qxf3 {[%clk 0:00:03.7]} 43... Qxf3+ {[%clk 0:00:19.5]} 44. Kxf3 {[%clk
0:00:04.6]} 44... Nd7 {[%clk 0:00:19.4]} 45. Ke4 {[%clk 0:00:05.1]} 45... Kg8
{[%clk 0:00:19.8]} 46. Be3 {[%clk 0:00:04.4]} 46... Kf7 {[%clk 0:00:20]} 47. Bd4
{[%clk 0:00:04.6]} 47... Ke6 {[%clk 0:00:20.1]} 48. Be3 {[%clk 0:00:04.9]} 48...
Kf6 {[%clk 0:00:19.7]} 49. Bd4+ {[%clk 0:00:04.9]} 49... Ke6 {[%clk 0:00:19.7]}
50. Be3 {[%clk 0:00:05.3]} 50... Kf6 {[%clk 0:00:19.9]} 51. Bd4+ {[%clk
0:00:05.7]} 51... Ke6 {[%clk 0:00:20.3]} 1/2-1/2

[Event "*** SCC Grand Prix: Titled Tuesday Blitz"]
[Site "Chess.com"]
[Date "2020.07.07"]
[Round "6"]
[White "suyu28"]
[Black "SavelievAlexei"]
[Result "1-0"]
[WhiteElo "2579"]
[BlackElo "2393"]
[TimeControl "180+1"]
[EndTime "11:06:54 PDT"]
[Termination "suyu28 won by checkmate"]

1. e4 {[%clk 0:02:59.1]} 1... d6 {[%clk 0:02:56]} 2. d4 {[%clk 0:02:58.8]} 2...
Nf6 {[%clk 0:02:56.5]} 3. Nc3 {[%clk 0:02:57.4]} 3... e5 {[%clk 0:02:56.8]} 4.
Nf3 {[%clk 0:02:56.2]} 4... Nbd7 {[%clk 0:02:56.4]} 5. Bc4 {[%clk 0:02:55.6]}
5... Be7 {[%clk 0:02:56.4]} 6. O-O {[%clk 0:02:55.7]} 6... O-O {[%clk
0:02:56.4]} 7. a4 {[%clk 0:02:56.2]} 7... c6 {[%clk 0:02:56.6]} 8. Ba2 {[%clk
0:02:54.6]} 8... b6 {[%clk 0:02:56.7]} 9. Re1 {[%clk 0:02:54.6]} 9... a6 {[%clk
0:02:57.1]} 10. Qd3 {[%clk 0:02:52.3]} 10... Qc7 {[%clk 0:02:57]} 11. Ne2 {[%clk
0:02:52.5]} 11... Bb7 {[%clk 0:02:56.7]} 12. Ng3 {[%clk 0:02:51.6]} 12... exd4
{[%clk 0:02:47.9]} 13. Nf5 {[%clk 0:02:47.2]} 13... Ne5 {[%clk 0:02:47.6]} 14.
Qxd4 {[%clk 0:02:41.1]} 14... Nxf3+ {[%clk 0:02:47.1]} 15. gxf3 {[%clk 0:02:42]}
15... d5 {[%clk 0:02:33.7]} 16. exd5 {[%clk 0:02:01]} 16... Bc5 {[%clk
0:02:31.5]} 17. Qh4 {[%clk 0:02:00.8]} 17... Nxd5 {[%clk 0:02:20.3]} 18. Bxd5
{[%clk 0:01:45.1]} 18... cxd5 {[%clk 0:02:21.2]} 19. Bf4 {[%clk 0:01:40.3]}
19... Qc6 {[%clk 0:02:18.9]} 20. b4 {[%clk 0:01:31.3]} 20... Qg6+ {[%clk
0:02:16.4]} 21. Ng3 {[%clk 0:01:07.9]} 21... Bxb4 {[%clk 0:02:12.9]} 22. Re5
{[%clk 0:01:07.9]} 22... h6 {[%clk 0:02:04.5]} 23. Kh1 {[%clk 0:00:58]} 23...
Bd6 {[%clk 0:01:48.7]} 24. Rg1 {[%clk 0:00:52.2]} 24... Bxe5 {[%clk 0:00:51.9]}
25. Bxe5 {[%clk 0:00:51.6]} 25... f6 {[%clk 0:00:20.3]} 26. Bd4 {[%clk
0:00:40.8]} 26... Rf7 {[%clk 0:00:20.2]} 27. Nh5 {[%clk 0:00:40.5]} 27... Qf5
{[%clk 0:00:20.4]} 28. Rg3 {[%clk 0:00:21.9]} 28... Raf8 {[%clk 0:00:15.9]} 29.
f4 {[%clk 0:00:12.7]} 29... g5 {[%clk 0:00:13.8]} 30. Rg4 {[%clk 0:00:10.2]}
30... Kh7 {[%clk 0:00:13.2]} 31. Qg3 {[%clk 0:00:09.8]} 31... Qe4+ {[%clk
0:00:08]} 32. Kg1 {[%clk 0:00:09.3]} 32... Qxd4 {[%clk 0:00:08.4]} 33. fxg5
{[%clk 0:00:08.9]} 33... Qd1+ {[%clk 0:00:08.6]} 34. Kg2 {[%clk 0:00:08.8]}
34... d4+ {[%clk 0:00:08.9]} 35. Kh3 {[%clk 0:00:08.5]} 35... Qe2 {[%clk
0:00:08.6]} 36. g6+ {[%clk 0:00:08.2]} 36... Kh8 {[%clk 0:00:06.9]} 37. gxf7
{[%clk 0:00:06.5]} 37... Qf1+ {[%clk 0:00:07]} 38. Kh4 {[%clk 0:00:06.8]} 38...
Rxf7 {[%clk 0:00:03.6]} 39. Rg8+ {[%clk 0:00:06.8]} 39... Kh7 {[%clk 0:00:04.2]}
40. Qg6# {[%clk 0:00:07.7]} 1-0

[Event "*** SCC Grand Prix: Titled Tuesday Blitz"]
[Site "Chess.com"]
[Date "2020.07.07"]
[Round "6"]
[White "BilodeauA"]
[Black "OparinGrigoriy"]
[Result "1-0"]
[WhiteElo "2850"]
[BlackElo "2935"]
[TimeControl "180+1"]
[EndTime "11:06:55 PDT"]
[Termination "BilodeauA won by resignation"]

1. e4 {[%clk 0:03:00.9]} 1... e5 {[%clk 0:03:00]} 2. Nf3 {[%clk 0:03:01.1]} 2...
Nc6 {[%clk 0:03:00.4]} 3. Bc4 {[%clk 0:03:01.8]} 3... Nf6 {[%clk 0:02:59.4]} 4.
d3 {[%clk 0:03:02.2]} 4... h6 {[%clk 0:02:59.2]} 5. c3 {[%clk 0:03:01.4]} 5...
g5 {[%clk 0:02:56.8]} 6. h4 {[%clk 0:02:56.6]} 6... g4 {[%clk 0:02:54]} 7. Nh2
{[%clk 0:02:56.3]} 7... Rg8 {[%clk 0:02:00.9]} 8. Nf1 {[%clk 0:02:55.9]} 8... d5
{[%clk 0:01:58.7]} 9. exd5 {[%clk 0:02:55.2]} 9... Nxd5 {[%clk 0:01:59.6]} 10.
Ng3 {[%clk 0:02:48.8]} 10... Be6 {[%clk 0:01:54.8]} 11. Nd2 {[%clk 0:02:27.7]}
11... Nf4 {[%clk 0:01:29.4]} 12. O-O {[%clk 0:02:27.4]} 12... Bxc4 {[%clk
0:01:23.8]} 13. Nxc4 {[%clk 0:02:27.5]} 13... Qxd3 {[%clk 0:01:15.7]} 14. Nxe5
{[%clk 0:02:04.9]} 14... Qxd1 {[%clk 0:00:29]} 15. Rxd1 {[%clk 0:02:05.8]} 15...
Nh3+ {[%clk 0:00:26.2]} 16. gxh3 {[%clk 0:02:06.2]} 16... Nxe5 {[%clk
0:00:26.6]} 17. Kg2 {[%clk 0:02:06.9]} 17... gxh3+ {[%clk 0:00:21]} 18. Kxh3
{[%clk 0:02:07.8]} 18... f6 {[%clk 0:00:20.4]} 19. Bf4 {[%clk 0:02:03.9]} 19...
Kf7 {[%clk 0:00:14.4]} 20. Bxe5 {[%clk 0:02:03.3]} 20... fxe5 {[%clk 0:00:15.3]}
21. Rd7+ {[%clk 0:02:03.3]} 21... Ke6 {[%clk 0:00:15.5]} 22. Rxc7 {[%clk
0:02:00.1]} 22... Rb8 {[%clk 0:00:13.4]} 23. Re1 {[%clk 0:01:56.6]} 23... Bd6
{[%clk 0:00:13.5]} 24. Rh7 {[%clk 0:01:56.7]} 24... Rh8 {[%clk 0:00:13.9]} 25.
Rxh8 {[%clk 0:01:42.3]} 25... Rxh8 {[%clk 0:00:14.8]} 26. Ne4 {[%clk 0:01:42.9]}
26... Be7 {[%clk 0:00:14.6]} 27. h5 {[%clk 0:01:35.4]} 27... Rd8 {[%clk
0:00:12.7]} 28. Kg4 {[%clk 0:01:31.2]} 28... Rg8+ {[%clk 0:00:12]} 29. Kf3
{[%clk 0:01:31.1]} 29... Rf8+ {[%clk 0:00:12.6]} 30. Ke3 {[%clk 0:01:31.5]}
30... Rf5 {[%clk 0:00:12.1]} 31. Rh1 {[%clk 0:01:32.1]} 31... Bg5+ {[%clk
0:00:12.1]} 32. Ke2 {[%clk 0:01:31.7]} 32... b6 {[%clk 0:00:11.4]} 33. f3 {[%clk
0:01:31.9]} 33... Be7 {[%clk 0:00:09.8]} 34. a4 {[%clk 0:01:30.8]} 34... a6
{[%clk 0:00:08.7]} 35. Kf2 {[%clk 0:01:31.3]} 35... b5 {[%clk 0:00:09]} 36. axb5
{[%clk 0:01:31.3]} 36... axb5 {[%clk 0:00:09.9]} 37. Kg3 {[%clk 0:01:32]} 37...
Kd5 {[%clk 0:00:08.8]} 38. Rd1+ {[%clk 0:01:28.9]} 38... Ke6 {[%clk 0:00:09.3]}
39. Rh1 {[%clk 0:01:26]} 39... Kd5 {[%clk 0:00:09.5]} 40. b3 {[%clk 0:01:22.5]}
40... Ke6 {[%clk 0:00:08]} 41. c4 {[%clk 0:01:22.5]} 41... bxc4 {[%clk
0:00:08.9]} 42. bxc4 {[%clk 0:01:23.4]} 42... Kd7 {[%clk 0:00:08.7]} 43. Ra1
{[%clk 0:01:18.2]} 43... Rxh5 {[%clk 0:00:08.5]} 44. Kg4 {[%clk 0:01:18.8]}
44... Rh2 {[%clk 0:00:07.7]} 45. Kf5 {[%clk 0:01:15.8]} 45... Rc2 {[%clk
0:00:08.1]} 46. Ra7+ {[%clk 0:01:15.9]} 46... Kd8 {[%clk 0:00:08.4]} 47. Ke6
{[%clk 0:01:14.7]} 47... Bb4 {[%clk 0:00:08.9]} 48. Kd5 {[%clk 0:00:46.3]} 48...
Rc1 {[%clk 0:00:09.4]} 49. c5 {[%clk 0:00:45]} 49... Rd1+ {[%clk 0:00:07.9]} 50.
Ke6 {[%clk 0:00:44.9]} 50... Bxc5 {[%clk 0:00:01.3]} 51. Nxc5 {[%clk 0:00:42.4]}
51... Rf1 {[%clk 0:00:01.8]} 52. Ne4 {[%clk 0:00:37.1]} 52... Kc8 {[%clk
0:00:01.7]} 53. Rf7 {[%clk 0:00:31.5]} 53... h5 {[%clk 0:00:01.7]} 54. Kxe5
{[%clk 0:00:32]} 54... h4 {[%clk 0:00:02.1]} 55. f4 {[%clk 0:00:32.6]} 55... h3
{[%clk 0:00:02.8]} 56. Rh7 {[%clk 0:00:33.1]} 56... Rf3 {[%clk 0:00:03]} 57. Ng5
{[%clk 0:00:33.6]} 57... Re3+ {[%clk 0:00:03.7]} 58. Kf5 {[%clk 0:00:34.1]}
58... Rc3 {[%clk 0:00:04]} 59. Rxh3 {[%clk 0:00:34.3]} 59... Rc5+ {[%clk
0:00:04.9]} 60. Kg4 {[%clk 0:00:34.6]} 60... Kd7 {[%clk 0:00:05.8]} 1-0

[Event "*** SCC Grand Prix: Titled Tuesday Blitz"]
[Site "Chess.com"]
[Date "2020.07.07"]
[Round "6"]
[White "kushagramohan"]
[Black "Fandorine"]
[Result "0-1"]
[WhiteElo "2704"]
[BlackElo "2881"]
[TimeControl "180+1"]
[EndTime "11:06:55 PDT"]
[Termination "Fandorine won by resignation"]

1. e4 {[%clk 0:03:00.9]} 1... e5 {[%clk 0:03:00]} 2. Nf3 {[%clk 0:03:00.3]} 2...
Nc6 {[%clk 0:03:00.5]} 3. d4 {[%clk 0:03:00.5]} 3... exd4 {[%clk 0:03:00.6]} 4.
Nxd4 {[%clk 0:03:01.4]} 4... Nf6 {[%clk 0:03:00.9]} 5. Nxc6 {[%clk 0:03:01.5]}
5... bxc6 {[%clk 0:03:01.8]} 6. e5 {[%clk 0:03:01.9]} 6... Qe7 {[%clk
0:03:01.3]} 7. Qe2 {[%clk 0:03:02.3]} 7... Nd5 {[%clk 0:03:01.8]} 8. c4 {[%clk
0:03:02.9]} 8... Ba6 {[%clk 0:03:00.8]} 9. Nd2 {[%clk 0:03:02]} 9... g6 {[%clk
0:02:55]} 10. Nf3 {[%clk 0:03:01.5]} 10... Bg7 {[%clk 0:02:54.5]} 11. Bg5 {[%clk
0:02:57.6]} 11... Qb4+ {[%clk 0:02:54.5]} 12. Qd2 {[%clk 0:02:56.2]} 12... Qxd2+
{[%clk 0:02:46.2]} 13. Bxd2 {[%clk 0:02:57.1]} 13... Ne7 {[%clk 0:02:35.9]} 14.
O-O-O {[%clk 0:02:53.2]} 14... O-O-O {[%clk 0:02:31.6]} 15. Bd3 {[%clk
0:02:27.4]} 15... h6 {[%clk 0:02:27]} 16. Bb4 {[%clk 0:02:22.9]} 16... Rhe8
{[%clk 0:02:22.2]} 17. Rhe1 {[%clk 0:02:22.3]} 17... d6 {[%clk 0:02:06.6]} 18.
exd6 {[%clk 0:02:00.5]} 18... cxd6 {[%clk 0:02:07.5]} 19. c5 {[%clk 0:01:36.1]}
19... Bxd3 {[%clk 0:01:59.6]} 20. cxd6 {[%clk 0:01:36.3]} 20... Nd5 {[%clk
0:01:46.7]} 21. Rxe8 {[%clk 0:01:30.4]} 21... Rxe8 {[%clk 0:01:47.6]} 22. Rxd3
{[%clk 0:01:25.1]} 22... Kd7 {[%clk 0:01:37.6]} 23. Bc5 {[%clk 0:01:23.4]} 23...
Rb8 {[%clk 0:01:20.2]} 24. Nd4 {[%clk 0:01:04.5]} 24... a5 {[%clk 0:01:07.4]}
25. Rf3 {[%clk 0:00:59.8]} 25... f5 {[%clk 0:01:04.3]} 26. g4 {[%clk 0:00:53.5]}
26... Bxd4 {[%clk 0:00:27]} 27. Bxd4 {[%clk 0:00:53.3]} 27... Rb4 {[%clk
0:00:27.3]} 28. Bg7 {[%clk 0:00:44.6]} 28... Rxg4 {[%clk 0:00:23.9]} 29. Bxh6
{[%clk 0:00:44.6]} 29... Kxd6 {[%clk 0:00:24]} 30. Ra3 {[%clk 0:00:43.9]} 30...
a4 {[%clk 0:00:22.1]} 31. h3 {[%clk 0:00:40.9]} 31... Rc4+ {[%clk 0:00:21.9]}
32. Kd2 {[%clk 0:00:40.8]} 32... Nf6 {[%clk 0:00:20.9]} 33. f3 {[%clk
0:00:36.6]} 33... Nd5 {[%clk 0:00:20.9]} 34. Bf8+ {[%clk 0:00:32.7]} 34... Ke6
{[%clk 0:00:19.8]} 35. Bh6 {[%clk 0:00:32.3]} 35... Rh4 {[%clk 0:00:19.6]} 36.
Bg5 {[%clk 0:00:28.3]} 36... Rxh3 {[%clk 0:00:19.8]} 37. Rxa4 {[%clk 0:00:25.6]}
37... Rxf3 {[%clk 0:00:19.4]} 38. Ra8 {[%clk 0:00:24.8]} 38... Rf2+ {[%clk
0:00:19.1]} 39. Kc1 {[%clk 0:00:25.1]} 39... f4 {[%clk 0:00:18.5]} 40. a4 {[%clk
0:00:24.8]} 40... Kf5 {[%clk 0:00:18.7]} 41. Bh6 {[%clk 0:00:22.1]} 41... Rh2
{[%clk 0:00:18.2]} 42. Bg7 {[%clk 0:00:22.4]} 42... f3 {[%clk 0:00:17.7]} 43. a5
{[%clk 0:00:17.5]} 43... Nb4 {[%clk 0:00:07.8]} 44. Bd4 {[%clk 0:00:14.5]} 44...
Ke4 {[%clk 0:00:07.2]} 45. Bc5 {[%clk 0:00:13.2]} 45... Nd3+ {[%clk 0:00:06.8]}
0-1

[Event "*** SCC Grand Prix: Titled Tuesday Blitz"]
[Site "Chess.com"]
[Date "2020.07.07"]
[Round "6"]
[White "giantslayer83"]
[Black "amintabatabaei"]
[Result "0-1"]
[WhiteElo "2724"]
[BlackElo "2931"]
[TimeControl "180+1"]
[EndTime "11:06:56 PDT"]
[Termination "amintabatabaei won by resignation"]

1. d4 {[%clk 0:03:00.9]} 1... Nf6 {[%clk 0:02:57.7]} 2. c4 {[%clk 0:03:00.6]}
2... g6 {[%clk 0:02:58.2]} 3. Nc3 {[%clk 0:03:00]} 3... d5 {[%clk 0:02:58.9]} 4.
Nf3 {[%clk 0:02:56.4]} 4... Bg7 {[%clk 0:02:58.9]} 5. cxd5 {[%clk 0:02:56.2]}
5... Nxd5 {[%clk 0:02:59.8]} 6. e4 {[%clk 0:02:56.4]} 6... Nxc3 {[%clk
0:03:00.4]} 7. bxc3 {[%clk 0:02:57.3]} 7... c5 {[%clk 0:03:01.1]} 8. Be3 {[%clk
0:02:56.9]} 8... Qa5 {[%clk 0:02:56.4]} 9. Qd2 {[%clk 0:02:57.1]} 9... Nc6
{[%clk 0:02:50.9]} 10. Rb1 {[%clk 0:02:50.3]} 10... a6 {[%clk 0:02:51]} 11. Rc1
{[%clk 0:02:50.1]} 11... cxd4 {[%clk 0:02:48.9]} 12. cxd4 {[%clk 0:02:51]} 12...
Qxd2+ {[%clk 0:02:48.6]} 13. Kxd2 {[%clk 0:02:51.9]} 13... e6 {[%clk 0:02:48.8]}
14. h4 {[%clk 0:02:22.8]} 14... h6 {[%clk 0:02:48.5]} 15. Bd3 {[%clk 0:02:19.5]}
15... O-O {[%clk 0:02:44.3]} 16. a3 {[%clk 0:02:00.7]} 16... Rd8 {[%clk
0:02:42.5]} 17. e5 {[%clk 0:02:00.9]} 17... Bd7 {[%clk 0:02:37.4]} 18. h5 {[%clk
0:01:41.5]} 18... g5 {[%clk 0:02:34.2]} 19. Ke2 {[%clk 0:01:32.5]} 19... f5
{[%clk 0:02:16.2]} 20. exf6 {[%clk 0:01:26.6]} 20... Bxf6 {[%clk 0:02:16.2]} 21.
Rhd1 {[%clk 0:00:54.2]} 21... Be8 {[%clk 0:02:08.9]} 22. g4 {[%clk 0:00:53.9]}
22... Rac8 {[%clk 0:02:01.7]} 23. Be4 {[%clk 0:00:31.7]} 23... Kg7 {[%clk
0:02:02.2]} 24. d5 {[%clk 0:00:28]} 24... exd5 {[%clk 0:02:01.9]} 25. Rxd5
{[%clk 0:00:28.3]} 25... Rxd5 {[%clk 0:01:58.6]} 26. Bxd5 {[%clk 0:00:29.2]}
26... Bd7 {[%clk 0:01:59.2]} 27. Rc4 {[%clk 0:00:27.7]} 27... Ne7 {[%clk
0:01:47.3]} 28. Rxc8 {[%clk 0:00:23.6]} 28... Bxc8 {[%clk 0:01:48.2]} 29. Be4
{[%clk 0:00:22.8]} 29... Bxg4 {[%clk 0:01:34.9]} 30. Bxb7 {[%clk 0:00:22.6]}
30... a5 {[%clk 0:01:35.7]} 31. Kf1 {[%clk 0:00:20]} 31... Bxh5 {[%clk
0:01:33.7]} 32. Nd4 {[%clk 0:00:20.1]} 32... Be8 {[%clk 0:01:26.5]} 33. Nb3
{[%clk 0:00:18.4]} 33... a4 {[%clk 0:01:26.4]} 34. Nd4 {[%clk 0:00:17.8]} 34...
Bd7 {[%clk 0:01:23.7]} 35. Kg2 {[%clk 0:00:16.8]} 35... h5 {[%clk 0:01:17.7]}
36. Be4 {[%clk 0:00:11.1]} 36... g4 {[%clk 0:01:13.7]} 37. Kg1 {[%clk
0:00:11.1]} 37... h4 {[%clk 0:01:09]} 38. Bc2 {[%clk 0:00:09.8]} 38... Be5
{[%clk 0:01:06]} 39. Ne2 {[%clk 0:00:09.2]} 39... Kf6 {[%clk 0:01:03.1]} 40. Bc5
{[%clk 0:00:08.6]} 40... Nd5 {[%clk 0:01:02.1]} 41. Nd4 {[%clk 0:00:08.5]} 41...
Nf4 {[%clk 0:00:59.7]} 42. Kf1 {[%clk 0:00:05.4]} 42... h3 {[%clk 0:00:54.7]}
43. Be4 {[%clk 0:00:04.9]} 43... Kg5 {[%clk 0:00:48.3]} 44. Be7+ {[%clk
0:00:04.5]} 44... Kh5 {[%clk 0:00:46.9]} 45. Nf5 {[%clk 0:00:04]} 45... Bb5+
{[%clk 0:00:40.8]} 46. Ke1 {[%clk 0:00:03.7]} 46... Nd3+ {[%clk 0:00:36.5]} 47.
Kd2 {[%clk 0:00:03.6]} 47... Nxf2 {[%clk 0:00:36.1]} 48. Bc2 {[%clk 0:00:03]}
48... g3 {[%clk 0:00:33.5]} 49. Ke3 {[%clk 0:00:02.5]} 49... h2 {[%clk
0:00:30.4]} 50. Nxg3+ {[%clk 0:00:01.5]} 50... Bxg3 {[%clk 0:00:31.3]} 0-1